Cogmind - Beta 12 @@@ ROGUE MODE // 2023.06.27 @ 13:13:05 Player: alexaub Result: Self-destructed Performance ------------- Evolutions (1) 500 Regions Visited (3) 600 Robots Destroyed (4) 20 Value Destroyed (162) 162 Prototype IDs (0) 0 Alien Tech Used (0) 0 Bonus (0) 0 TOTAL SCORE: 1282 Bonus ------- None Cogmind --------- Core Integrity 400/400 Matter 300/300 Energy 158/160 System Corruption 0% Temperature Cool (0) Movement Rolling (90) Location -9/Materials Parts ------- > --- POWER (1) -------- Light Nuclear Core > --- PROPULSION (3) --- Wheel Compact Wheel > --- UTILITY (2) ------ Medium Storage Unit Targeting Computer > --- WEAPON (3) ------- Particle Gun Light Assault Rifle > --- INVENTORY (10) --- Light Nuclear Core Aluminum Leg Aluminum Leg Heat Sink Large Storage Unit Large Battery (200) High-capacity Matter Pod (47) Small Laser Light Assault Rifle Peak State ------------ > --- POWER ------------ Light Nuclear Core > --- PROPULSION ------- Wheel Compact Wheel > --- UTILITY ---------- Medium Storage Unit Targeting Computer > --- WEAPON ----------- Particle Gun Light Assault Rifle > --- INVENTORY -------- Light Ion Engine Light Nuclear Core Aluminum Leg Aluminum Leg Large Storage Unit Large Battery High-capacity Matter Pod Small Laser Light Assault Rifle [Rating: 11] Favorites ----------- Power Light Ion Engine Engine Light Ion Engine Power Core Light Nuclear Core Propulsion Compact Wheel Wheel Compact Wheel Utility Medium Storage Unit Storage Medium Storage Unit Processor Targeting Computer Protection Light Armor Plating Weapon Light Assault Rifle Energy Gun Small Laser Ballistic Gun Light Assault Rifle Build | -11 -10 -10 -9 ------- Run | Jun Mat Min Mat Slots Evolved 2 | . . . 2 Power . | . . . . Propulsion 1 | . . . 1 Utility . | . . . . Weapon 1 | . . . 1 Parts Attached 12 | 6 3 3 . Power 3 | 1 1 1 . Engine 1 | 1 . . . Core 2 | . 1 1 . Reactor . | . . . . Propulsion 2 | 2 . . . Treads . | . . . . Leg . | . . . . Wheel 2 | 2 . . . Hover . | . . . . Flight . | . . . . Utility 4 | 1 2 1 . Device . | . . . . Storage 2 | 1 1 . . Processor 1 | . . 1 . Hackware . | . . . . Protection 1 | . 1 . . Artifact . | . . . . Weapon 3 | 2 . 1 . Energy Gun 2 | 1 . 1 . Energy Cannon . | . . . . Ballistic Gun 1 | 1 . . . Ballistic Cannon . | . . . . Launcher . | . . . . Special Weapon . | . . . . Impact Weapon . | . . . . Slashing Weapon . | . . . . Piercing Weapon . | . . . . Special Melee Weapon . | . . . . Unidentified Prototypes . | . . . . Parts Lost 1 | . . 1 . Power . | . . . . Propulsion . | . . . . Utility 1 | . . 1 . Weapon . | . . . . Highest Loss Streak 1 | . . 1 . To Critical Strikes . | . . . . Average Slot Usage (%) 97 | . 98 98 77 Engine 8 | . 12 . . Core 5 | . 1 14 11 Wheel 27 | . 28 28 22 Storage 13 | . 14 14 11 Processor 2 | . . 8 11 Protection 9 | . 12 3 . Energy Gun 13 | . 14 14 11 Ballistic Gun 13 | . 14 14 11 Naked Turns . | . . . . Heaviest Build 20 | 10 20 20 19 Greatest Support 26 | 26 26 26 26 Greatest Overweight (x) . | . . . . Average Overweight (x) . | . . . . Largest Inventory Capacity 10 | 8 10 10 10 Average Capacity 9 | 6 9 10 10 Most Carried 10 | 5 10 10 9 Average Carried 6 | 3 6 8 9 Final Capacity 10 | 8 10 10 10 Final Carried 9 | 4 8 9 9 Class Distribution -------------------- 100% | Mutant Dominant Class ---------------- Mutant | -10/Materials Mutant | -10/Mines Mutant | -9/Materials Resources | -11 -10 -10 -9 ----------- Run | Jun Mat Min Mat Matter Collected 376 | 196 90 90 . Remotely . | . . . . Salvage Created 180 | . 90 90 . Parts 11 | . 4 7 . Haulers Intercepted . | . . . . Recyclers Shooed . | . . . . Parts Field Recycled . | . . . . Retrieved Matter . | . . . . Parts Self-Destructed . | . . . . Prevented . | . . . . Kills | -11 -10 -10 -9 ------- Run | Jun Mat Min Mat Combat Hostiles Destroyed 4 | . 2 2 . Guns 4 | . 2 2 . Classes Destroyed 1 | . 1 . . Grunt 4 | . 2 2 . Best Kill Streak 2 | . 2 2 . Combat Bots Only 2 | . 2 2 . Max Kills in Single Turn 1 | . 1 1 . Gunslinging . | . . . . Exploded . | . . . . Melee . | . . . . Uniques/NPCs Destroyed . | . . . . Combat | -11 -10 -10 -9 -------- Run | Jun Mat Min Mat Damage Taken 225 | . 83 142 . Core 99 | . 28 71 . Absorbed by Shields . | . . . . Core Remaining (%) 80 | 100 . 60 . Volleys Fired 14 | . 6 8 . Largest 2 | . 2 2 . Hottest 60 | . 60 60 . Shots Fired 28 | . 12 16 . Gun 28 | . 12 16 . Cannon . | . . . . Launcher . | . . . . Special . | . . . . Kinetic 14 | . 6 8 . Thermal 14 | . 6 8 . Explosive . | . . . . Electromagnetic . | . . . . Robot Hit Streak 7 | . 6 7 . Robot Miss Streak 2 | . 2 1 . Penetration Max . | . . . . Secondary Targets . | . . . . Shots Hit Robots 21 | . 9 12 . Core Hits 10 | . 5 5 . Critical Kills . | . . . . Critical Parts Destroyed . | . . . . Critical Strikes . | . . . . Melee Attacks . | . . . . Impact . | . . . . Slashing . | . . . . Piercing . | . . . . Sneak Attacks . | . . . . Combat Hostiles . | . . . . Follow-up Attacks . | . . . . Damage Inflicted 212 | . 93 119 . Guns 212 | . 93 119 . Cannons . | . . . . Explosions . | . . . . Melee . | . . . . Ramming . | . . . . Kinetic 76 | . 35 41 . Thermal 136 | . 58 78 . Explosive . | . . . . Electromagnetic . | . . . . Impact . | . . . . Slashing . | . . . . Piercing . | . . . . Highest Corruption . | . . . . Average Corruption . | . . . . Corruption Purged . | . . . . Corruption Blocked . | . . . . Overload Shots . | . . . . Overflow Damage . | . . . . Projectiles . | . . . . Explosions . | . . . . Melee . | . . . . Knockbacks . | . . . . Impact . | . . . . Kinetic . | . . . . Secondary . | . . . . Self-Inflicted Damage . | . . . . Shots . | . . . . Rammed . | . . . . Targets Rammed . | . . . . Kicked . | . . . . Crushed . | . . . . Highest Temperature 153 | . 127 153 . Average Temperature 78 | . 66 88 . Received Heat Transfer 147 | . 66 81 . Siege Activations . | . . . . Robots Corrupted . | . . . . Combat Hostiles . | . . . . Parts Fried . | . . . . Impact Corruptions . | . . . . Robots Melted . | . . . . Combat Hostiles . | . . . . Parts Melted . | . . . . Heat Transferred 300 | . 125 175 . Parts Sabotaged . | . . . . Parts Stolen . | . . . . Parts Stripped . | . . . . Power Chain Reactions . | . . . . Missiles Intercepted . | . . . . Alert | -11 -10 -10 -9 ------- Run | Jun Mat Min Mat Peak Influence 100 | . 100 94 36 Initial 39 | . . 39 36 Average 36 | . 31 80 36 Maximum Alert Level . | . . . . Low Security (%) 100 | 100 100 100 100 Level 1 . | . . . . Level 2 . | . . . . Level 3 . | . . . . Level 4 . | . . . . Level 5 . | . . . . High Security . | . . . . Max Security . | . . . . Squads Dispatched . | . . . . Investigation . | . . . . Extermination . | . . . . Reinforcement . | . . . . Assault . | . . . . Garrison . | . . . . Intercept . | . . . . Searches Triggered . | . . . . Construction Impeded . | . . . . Haulers Reinforced . | . . . . Active Scanning Responses . | . . . . Cargo Convoy Interrupts . | . . . . Stealth | -11 -10 -10 -9 --------- Run | Jun Mat Min Mat Distress Signals 1 | . 1 . . Communications Jammed . | . . . . Distress Signals . | . . . . Times Spotted 8 | . 6 2 . Peak Tracking Total 3 | . 3 2 . Tactical Retreats 1 | . 1 . . Traps | -11 -10 -10 -9 ------- Run | Jun Mat Min Mat Traps Triggered . | . . . . Indirectly . | . . . . Trap Hack Attempts . | . . . . Triggered . | . . . . Disarmed . | . . . . Reprogrammed . | . . . . Reused . | . . . . Traps Extracted . | . . . . Installed . | . . . . Triggered . | . . . . Machines | -11 -10 -10 -9 ---------- Run | Jun Mat Min Mat Machines Disabled . | . . . . Max in Single Turn . | . . . . Machines Repaired . | . . . . Machines Sabotaged . | . . . . Overloaded Fab Kills . | . . . . Hacking | -11 -10 -10 -9 --------- Run | Jun Mat Min Mat Machines Accessed 3 | . 3 . . Terminals 3 | . 3 . . Fabricators . | . . . . Repair Stations . | . . . . Recycling Units . | . . . . Scanalyzers . | . . . . Garrison Access . | . . . . Total Hacks 6 | . 6 . . Successful 1 | . 1 . . Failed 5 | . 5 . . Catastrophic 1 | . 1 . . Database Lockouts . | . . . . Manual 6 | . 6 . . Terminals 6 | . 6 . . Fabricators . | . . . . Repair Stations . | . . . . Recycling Units . | . . . . Scanalyzers . | . . . . Garrison Access . | . . . . Terminal Hacks . | . . . . Fabricator Hacks . | . . . . Repair Station Hacks . | . . . . Recycling Unit Hacks . | . . . . Scanalyzer . | . . . . Garrison Access Hacks . | . . . . Unauthorized Hacks 1 | . 1 . . Terminals 1 | . 1 . . Botnet 1 | . 1 . . Fabricators . | . . . . Repair Stations . | . . . . Recycling Units . | . . . . Scanalyzers . | . . . . Garrison Access . | . . . . Data Cores Recovered . | . . . . Used . | . . . . Hacking Detections 3 | . 3 . . Full Trace Events 1 | . 1 . . Feedback Events . | . . . . Feedback Blocked . | . . . . Robot Schematics Acquired . | . . . . Robots Built . | . . . . Authchips . | . . . . Time . | . . . . Total Robot Build Rating . | . . . . Part Schematics Acquired . | . . . . Parts Built . | . . . . Authchips . | . . . . Time . | . . . . Total Part Build Rating . | . . . . Parts Repaired . | . . . . Time . | . . . . Parts Recycled . | . . . . Recycled Matter . | . . . . Retrieved Matter . | . . . . Retrieved Components . | . . . . Parts Scanalyzed . | . . . . Part Schematics Acquired . | . . . . Parts Damaged . | . . . . Bothacking | -11 -10 -10 -9 ------------ Run | Jun Mat Min Mat Used RIF Installer . | . . . . Robots Hacked . | . . . . Non-combat . | . . . . Combat . | . . . . Robot Hacks Applied . | . . . . Relay Couplers Released . | . . . . Fabnet Peak Effective % . | . . . . Robots Rewired . | . . . . Allies Hacked . | . . . . Hacks Repelled . | . . . . Allies | -11 -10 -10 -9 -------- Run | Jun Mat Min Mat Total Allies . | . . . . Largest Group . | . . . . Highest-Rated Group . | . . . . Highest-Rated Ally . | . . . . Total Orders . | . . . . Ally Attacks . | . . . . Total Damage . | . . . . Kills . | . . . . Allies Corrupted . | . . . . Allies Melted . | . . . . Intel | -11 -10 -10 -9 ------- Run | Jun Mat Min Mat Robot Analysis Total . | . . . . Derelict Logs Recovered . | . . . . Drone Launches . | . . . . Drone Recoveries . | . . . . Exploration | -11 -10 -10 -9 ------------- Run | Jun Mat Min Mat Turns Passed 375 | 59 229 77 10 Spaces Moved 330 | 52 219 48 11 Core 2 | 2 . . . Treads . | . . . . Legs . | . . . . Wheels 328 | 50 219 48 11 Hover . | . . . . Flight . | . . . . Fastest Speed 50 | 50 90 90 90 Average Speed 89 | 88 90 90 90 Slowest Speed 100 | 100 90 90 90 Overloaded Moves . | . . . . Propulsion Burnouts . | . . . . Robots Hopped . | . . . . Cave-ins Triggered . | . . . . Exploration Rate (%) 14 | 4 37 14 4 Regions Visited 3 Branch Regions 1 Pre-discovered Areas . | . . . . Known Exits Taken . | . . . . Unknown Exits Taken 3 | 1 1 1 . Scrap Searched . | . . . . Spaces Dug . | . . . . Terrain Destroyed . | . . . . Melee . | . . . . Projectile . | . . . . AOE . | . . . . Terrain Rammed . | . . . . Walls Destroyed . | . . . . Machines Disabled . | . . . . Actions | -11 -10 -10 -9 --------- Run | Jun Mat Min Mat Total 379 | 62 240 66 11 Wait 9 | . 3 6 . Move 327 | 51 218 47 11 Hop . | . . . . Pick Up 11 | 5 5 1 . Fast Attach 8 | 5 3 . . Attach 2 | 1 . 1 . Detach 2 | . 2 . . Swap 2 | . . 2 . Drop 4 | . 3 1 . Fire 14 | . 6 8 . Melee . | . . . . Ram . | . . . . Kick . | . . . . Crush . | . . . . Escape Stasis . | . . . . Rewire . | . . . . Trap . | . . . . Miscellaneous . | . . . . Route ------- -11/Junkyard -10/Materials (discovered 2 exits: *Mat / [*Min]) -10/Mines -9/Materials History --------- Turn | Location | Event 21 | -11/Junkyard | Discovered new exit (range 14) 60 | -11/Junkyard | Entered Materials 131 | -10/Materials | Discovered new exit (range 14) 261 | -10/Materials | Discovered new exit (range 12) 289 | -10/Materials | Entered Mines 292 | -10/Mines | Discovered new exit (range 7) 309 | -10/Mines | Build established: Mutant 366 | -10/Mines | Entered Materials 366 | -9/Materials | Evolved 2 slots: Propulsion x1, Weapon x1 376 | -9/Materials | Self-destructed Last Messages --------------- 00261_ EXIT=FOUND 00270_ Acquired Hcp. Matter Pod. 00288_ Dropped Lrg. Storage Unit. 00288_ Dropped Lgt. Ion Engine. LOCATION=UNKNOWN GOAL=ESCAPE 00292_ EXIT=FOUND 00293_ K-01 Serf collects debris. 00302_ G-34 Mercenary destroyed. 00305_ Lgt. Armor Plating destroyed. 00320_ G-47 Trooper destroyed. 00329_ Acquired Heat Sink. 00330_ Acquired 48 matter. 00332_ Acquired 42 matter. 00333_ Dropped Lgt. Ion Engine. PARAMETERS=PROPULSION+1,WEAPON+1 LOCATION=UNKNOWN GOAL=ESCAPE 00376_ Connecting with Terminal... 00376_ Current location identified: Materials Map ----- +----------------------------------------------------+ | ?????????????????????????????????????????????????? | | ?????????????????????????????????????????????????? | | ?????????????????????????????????????????????????? | | ?????????????????????????????????????????????????? | | ?????????????????????????????????????????????????? | | ?????????????????? ????????????????????????????? | | ?????????????????? #???????????????????????????? | | ?????????????????" #???????????????????????????? | | ????????????# ??" #???????????????????????????? | | ????????????# ?"" #???????????????????????????? | | ????????????# ?? #???????????????????????????? | | ????????????# ?? #???????????????????????????? | | ????????????# """ #???????????????????????????? | | ????????????# """ #???????????????????????????? | | ????????????# """ #???????????????????????????? | | ????????????# #???????????????????????????? | | ????????????# #???????????????????????????? | | ????????????# """ #???????????????????????????? | | ????????????# """ #???????????????????????????? | | ????????????# """ ##+###??????????????????????? | | ????????????# #??????????????????????? | | ????????????# +??????????????????????? | | ????????????# #????"" #?????????????? | | ????????????# #######+###??""" #?????????????? | | ????????????# #?# # #?????????????? | | ????????????#####?#""" T@/ #?????????????? | | ??????????????????#""" ########???????????????? | | ??????????????????#""" #??????????????????????? | | ??????????????????# #??????????????????????? | | ??????????????????########???????????????????????? | | | | | | | | | | | | | | | | | | | | | | | | | | | | | | | | | | | | | | | | | +----------------------------------------------------+ Best States ------------- Heat Dissipation 28 Energy Generation 14 Energy Capacity 160 Matter Stores 300 Matter Capacity 300 Sight Range 16 Terrain Scan Density 10 Armor Coverage 150 Evasion (%) 42 Targeting Accuracy 5 Item Schematics ----------------- None Robot Schematics ------------------ None Fabricated ------------ Nothing Alien Tech Used ----------------- None Achievements -------------- None Challenges ------------ None Game ------ Seed ArmoredSurgeSpear Manual? 0 Play Time 00:06:58 Cumulative 51.2 hours Start 2023.06.27 @ 13:06:30 End 2023.06.27 @ 13:13:05 Sessions 1 Manual Loads 0 Difficulty Rogue Special Mode None Game No. 44 Rogue 44 Adventurer 0 Explorer 0 Win Type - Total 0 Types 0/0/0/0/0/0/0/0/0 Lore% 35 Gallery% 49 Achievement% 38 Wizard Run 0 Options --------- ASCII 0 Keyboard 1 Movement Vi Keybinds 0 Fullscreen 1 Font 24/Smallcaps Map View 76x50 Tactical HUD 1 Map Filters NONE Filters NONE Steam 1 RUN: 310d78b8-60f2-43a3-8828-a56eca50a28d